fUSD/lending_fUSD_20240718
["ID","MTS","AMOUNT","RATE_DAILY","PERIOD"]
[332496098,1721274663622,-2313.987061,0.00020627,2]
[332496099,1721274663635,-234.165349,0.00020627,2]
[332496100,1721274663649,-157.576665,0.00020627,2]
[332496101,1721274663658,-2269.123359,0.00020627,2]
[332496102,1721274663668,-2751.88731,0.00020627,2]
[332496103,1721274663677,-186.170226,0.00020627,2]
[332496104,1721274663687,-2313.987061,0.00020627,2]
[332496105,1721274663697,-234.165349,0.00020627,2]
[332496106,1721274663707,-2269.123359,0.00020627,2]
[332496107,1721274663716,-288.852772,0.00020638,2]
[332496108,1721274663727,-180.95257,0.00020652,2]
[332496109,1721274663737,-152.46046607,0.00020672,2]
[332496110,1721274663747,-155.87419607,0.00020688,2]
[332496111,1721274663757,-152.38095238,0.00020731,2]
[332496112,1721274663767,-826.739924,0.00020735,2]
[332496113,1721274663776,-754.195258,0.00020735,2]
[332496114,1721274663787,-206.684981,0.00020735,2]
[332496115,1721274663797,-188.548815,0.00020735,2]
[332496116,1721274663807,-459.604154,0.00020735,2]
[332496117,1721274663818,-310.798402,0.00020735,2]
[332496118,1721274663828,-224.871233,0.00020735,2]
[332496119,1721274663838,-3000.0,0.000208,2]
[332496120,1721274663849,-237.4,0.000208,2]
[332496121,1721274663859,-653.25,0.0002087,2]
[332496122,1721274663868,-2326.235431,0.00020876,2]
[332496123,1721274663877,-195.546871,0.00020876,2]
[332496124,1721274663890,-1391.133342,0.00020876,2]
[332496125,1721274663901,-1172.01676,0.00020876,2]
[332496126,1721274663911,-155.440422,0.00020876,2]
[332496127,1721274663924,-197.385129,0.00020876,2]
[332496128,1721274663933,-218.488545,0.00020876,2]
[332496129,1721274663943,-178.327964,0.00020876,2]
[332496130,1721274663953,-4538.246719,0.00020876,2]
[332496131,1721274663963,-2751.88731,0.00020876,2]
[332496132,1721274663973,-186.170226,0.00020876,2]
[332496133,1721274663982,-2313.987061,0.00020876,2]
[332496134,1721274663993,-234.165349,0.00020876,2]
[332496135,1721274664002,-157.576665,0.00020876,2]
[332496136,1721274664012,-196.970833,0.00020876,2]
[332496137,1721274664021,-2269.123359,0.00020876,2]
[332496138,1721274664031,-2751.88731,0.00020876,2]
[332496139,1721274664041,-186.170226,0.00020876,2]
[332496140,1721274664050,-2313.987061,0.00020876,2]
[332496141,1721274664060,-234.165349,0.00020876,2]
[332496142,1721274664069,-196.970832,0.00020876,2]
[332496143,1721274664080,-218.166543,0.00020876,2]
[332496144,1721274664089,-2269.123359,0.00020876,2]
[332496145,1721274664099,-182.886541,0.00020876,2]
[332496146,1721274664135,-288.852772,0.00020893,2]
[332496147,1721274664145,-157.03226317,0.00020897,2]
[332496148,1721274664154,-749.32,0.00020962,2]
[332496149,1721274664163,-152.455554,0.00020966,2]
[332496150,1721274664174,-180.95257,0.00020985,2]
[332496151,1721274664184,-826.739924,0.00020985,2]
[332496152,1721274664193,-165.047359,0.00020985,2]
[332496153,1721274664203,-754.195258,0.00020985,2]
[332496154,1721274664213,-206.684981,0.00020985,2]
[332496155,1721274664223,-188.548815,0.00020985,2]
[332496156,1721274664233,-459.604154,0.00020985,2]
[332496157,1721274664243,-310.798402,0.00020985,2]
[332496158,1721274664253,-224.871233,0.00020985,2]
[332496159,1721274664262,-2240.37422997,0.00021,2]
[332496160,1721274664272,-750.0,0.00021,2]
[332496161,1721274664282,-450.0,0.0002101,2]
[332496162,1721274664292,-335.0,0.0002101,2]
[332496163,1721274664301,-200.0,0.0002101,2]
[332496164,1721274664311,-152.455554,0.0002104,2]
[332496165,1721274664320,-160.04773198,0.00021075,2]
[332496166,1721274664330,-215.45,0.00021094,2]
[332496167,1721274664340,-150.0,0.00021096,2]
[332496168,1721274664349,-288.852772,0.00021148,2]
[332496169,1721274664359,-152.46046607,0.00021211,2]
[332496170,1721274664369,-186.0284815,0.00021214,2]
[332496171,1721274664381,-366.47664087,0.00021216,2]
[332496172,1721274664391,-152.455554,0.00021248,2]
[332496173,1721274664402,-752.248858,0.0002137,2]
[332496174,1721274664412,-180.0,0.00021397,2]
[332496175,1721274664421,-288.852772,0.00021403,2]
[332496176,1721274664431,-150.0,0.00021414,2]
[332496177,1721274664440,-152.10825304,0.0002145,2]
[332496178,1721274664450,-152.455554,0.00021497,2]
[332496179,1721274664460,-1662.0,0.00021497,2]
[332496180,1721274664469,-1273.714,0.00021497,2]
[332496181,1721274664479,-1253.0,0.00021497,2]
[332496182,1721274664488,-450.0,0.00021497,2]
[332496183,1721274664498,-809.0,0.00021497,2]
[332496184,1721274664508,-620.0,0.00021497,2]
[332496185,1721274664518,-445.0,0.00021497,2]
[332496186,1721274664528,-1490.252,0.00021497,2]
[332496187,1721274664538,-549.0,0.00021497,2]
[332496188,1721274664549,-1992.0,0.00021497,2]
[332496189,1721274664560,-3280.0,0.00021497,2]
[332496190,1721274664571,-5117.0,0.00021497,2]
[332496191,1721274664581,-981.46,0.00021644,2]
[332496192,1721274664592,-308.06878195,0.000217,2]
[332496193,1721274664602,-158.97684361,0.00021764,2]
[332496194,1721274664612,-151.27083308,0.00021808,2]
[332496195,1721274664622,-157.03226317,0.00021856,2]
[332496196,1721274664634,-500.0,0.00021917,2]
[332496197,1721274664647,-155.0,0.00021917,2]
[332496198,1721274664657,-501.67108828,0.00021917,2]
[332496199,1721274664667,-501.84409403,0.00021917,2]
[332496200,1721274664677,-501.20661003,0.00021917,2]
[332496201,1721274664688,-500.0,0.00021917,2]
[332496202,1721274664699,-502.57213301,0.00021917,2]
[332496203,1721274664709,-171.4295318,0.00021917,2]
[332496204,1721274664720,-500.0,0.00021917,2]
[332496205,1721274664731,-501.96285033,0.00021917,2]
[332496206,1721274664740,-205.27829383,0.00021917,2]
[332496207,1721274664750,-516.5879031,0.00021917,2]
[332496208,1721274664759,-155.74771715,0.00021917,2]
[332496209,1721274664769,-500.0,0.00021917,2]
[332496210,1721274664778,-164.11468926,0.00021917,2]
[332496211,1721274664787,-502.83540591,0.00021917,2]
[332496212,1721274664797,-501.628524,0.00021917,2]
[332496213,1721274664806,-200.0,0.00021917,2]
[332496214,1721274664816,-497.67120228,0.00021917,2]
[332496215,1721274664826,-502.52391767,0.00021917,2]
[332496216,1721274664835,-500.0,0.00021917,2]
[332496217,1721274664845,-500.0,0.00021917,2]
[332496218,1721274664855,-500.0,0.00021917,2]
[332496219,1721274664865,-530.33511334,0.00021917,2]
[332496220,1721274664875,-500.0,0.00021917,2]
[332496221,1721274664885,-503.7788781,0.00021917,2]
[332496222,1721274664894,-208.96462486,0.00021917,2]
[332496223,1721274664904,-504.36584319,0.00021917,2]
[332496224,1721274664914,-500.0,0.00021917,2]
[332496225,1721274664924,-500.0,0.00021917,2]
[332496226,1721274664933,-503.50528532,0.00021917,2]
[332496227,1721274664942,-504.79061467,0.00021917,2]
[332496228,1721274664952,-505.95656835,0.00021917,2]
[332496229,1721274664961,-500.0,0.00021917,2]
[332496230,1721274664972,-200.4519657,0.00021917,2]
[332496231,1721274664982,-503.90517932,0.00021917,2]
[332496232,1721274664992,-500.0,0.00021917,2]
[332496233,1721274665001,-508.97912676,0.00021917,2]
[332496234,1721274665011,-500.0,0.00021917,2]
[332496235,1721274665020,-818.75,0.00021917,2]
[332496236,1721274665030,-500.0,0.00021917,2]
[332496237,1721274665039,-500.0,0.00021917,2]
[332496238,1721274665048,-540.77,0.00021917,2]
[332496239,1721274665058,-504.41987107,0.00021917,2]
[332496240,1721274665067,-504.65836833,0.00021917,2]
[332496241,1721274665077,-521.74,0.00021917,2]
[332496242,1721274665087,-504.4461674,0.00021917,2]
[332496243,1721274665096,-503.42607427,0.00021917,2]
[332496244,1721274665106,-586.18302704,0.00021917,2]
[332496245,1721274665116,-500.0,0.00021917,2]
[332496246,1721274665126,-500.0,0.00021917,2]
[332496247,1721274665136,-500.0,0.00021917,2]
[332496248,1721274665145,-500.0,0.00021917,2]
[332496249,1721274665154,-566.99,0.00021917,2]
[332496250,1721274665164,-738.9,0.00021917,2]
[332496251,1721274665173,-500.0,0.00021917,2]
[332496252,1721274665183,-502.86743293,0.00021917,2]
[332496253,1721274665193,-502.88587691,0.00021917,2]
[332496254,1721274665202,-500.0,0.00021917,2]
[332496255,1721274665212,-500.0,0.00021917,2]
[332496256,1721274665222,-500.0,0.00021917,2]
[332496257,1721274665231,-508.58445745,0.00021917,2]
[332496258,1721274665241,-500.0,0.00021917,2]
[332496259,1721274665250,-712.74,0.00021917,2]
[332496260,1721274665259,-805.54,0.00021917,2]
[332496261,1721274665268,-507.35994172,0.00021917,2]
[332496262,1721274665442,-500.0,0.00021917,2]
[332496263,1721274665452,-1011.47,0.00021917,2]
[332496264,1721274665463,-563.10039408,0.00021917,2]
[332496265,1721274665473,-500.0,0.00021917,2]
[332496266,1721274665483,-501.87,0.00021917,2]
[332496267,1721274665492,-500.0,0.00021917,2]
[332496268,1721274665502,-505.25966527,0.00021917,2]
[332496269,1721274665512,-502.61944682,0.00021917,2]
[332496270,1721274665521,-395.13431426,0.00021917,2]
[332496271,1721274665531,-500.0,0.00021917,2]
[332496272,1721274665541,-500.0,0.00021917,2]
[332496273,1721274665554,-500.0,0.00021917,2]
[332496274,1721274665564,-504.42696591,0.00021917,2]
[332496275,1721274665575,-500.0,0.00021917,2]
[332496276,1721274665585,-500.0,0.00021917,2]
[332496277,1721274665598,-500.0,0.00021917,2]
[332496278,1721274665609,-505.34257136,0.00021917,2]
[332496279,1721274665620,-500.0,0.00021917,2]
[332496280,1721274665629,-503.9849531,0.00021917,2]
[332496281,1721274665641,-574.24191855,0.00021917,2]
[332496282,1721274665654,-500.0,0.00021917,2]
[332496283,1721274665664,-500.0,0.00021917,2]
[332496284,1721274665674,-500.0,0.00021917,2]
[332496285,1721274665684,-529.89,0.00021917,2]
[332496286,1721274665694,-500.0,0.00021917,2]
[332496287,1721274665704,-506.66884514,0.00021917,2]
[332496288,1721274665714,-500.0,0.00021917,2]
[332496289,1721274665725,-500.0,0.00021917,2]
[332496290,1721274665735,-500.0,0.00021917,2]
[332496291,1721274665744,-500.0,0.00021917,2]
[332496292,1721274665754,-500.0,0.00021917,2]
[332496293,1721274665763,-500.0,0.00021917,2]
[332496294,1721274665773,-500.0,0.00021917,2]
[332496295,1721274665783,-500.0,0.00021917,2]
[332496296,1721274665792,-500.0,0.00021917,2]
[332496297,1721274665802,-581.44,0.00021917,2]
[332496298,1721274665811,-500.0,0.00021917,2]
[332496299,1721274665820,-500.0,0.00021917,2]
[332496300,1721274665830,-500.0,0.00021917,2]
[332496301,1721274665840,-500.0,0.00021917,2]
[332496302,1721274665850,-502.39,0.00021917,2]
[332496303,1721274665860,-262.63148145,0.00021917,2]
[332496304,1721274665870,-500.0,0.00021917,2]
[332496305,1721274665882,-500.0,0.00021917,2]
[332496306,1721274665891,-500.0,0.00021917,2]
[332496307,1721274665902,-500.0,0.00021917,2]
[332496308,1721274665912,-500.0,0.00021917,2]
[332496309,1721274665922,-520.9,0.00021917,2]
[332496310,1721274665931,-500.0,0.00021917,2]
[332496311,1721274665941,-500.0,0.00021917,2]
[332496312,1721274665951,-500.0,0.00021917,2]
[332496313,1721274665961,-500.0,0.00021917,2]
[332496314,1721274665970,-500.0,0.00021917,2]
[332496315,1721274665979,-500.0,0.00021917,2]
[332496316,1721274665988,-502.86271258,0.00021917,2]
[332496317,1721274665998,-501.11120565,0.00021917,2]
[332496318,1721274666008,-499.40032933,0.00021917,2]
[332496319,1721274666017,-500.0,0.00021917,2]
[332496320,1721274666027,-973.37,0.00021917,2]
[332496321,1721274666036,-500.0,0.00021917,2]
[332496322,1721274666046,-1076.23,0.00021917,2]
[332496323,1721274666055,-500.0,0.00021917,2]
[332496324,1721274666066,-500.0,0.00021917,2]
[332496325,1721274666076,-500.0,0.00021917,2]
[332496326,1721274666086,-500.0,0.00021917,2]
[332496327,1721274666095,-500.0,0.00021917,2]
[332496328,1721274666105,-500.0,0.00021917,2]
[332496329,1721274666114,-500.0,0.00021917,2]
[332496330,1721274666124,-616.41,0.00021917,2]
[332496331,1721274666134,-500.0,0.00021917,2]
[332496332,1721274666144,-793.18,0.00021917,2]
[332496333,1721274666153,-502.33320732,0.00021917,2]
[332496334,1721274666163,-500.0,0.00021917,2]
[332496335,1721274666172,-560.96,0.00021917,2]
[332496336,1721274666182,-500.0,0.00021917,2]
[332496337,1721274666191,-500.0,0.00021917,2]
[332496338,1721274666201,-647.77,0.00021917,2]
[332496339,1721274666212,-500.0,0.00021917,2]
[332496340,1721274666222,-504.4,0.00021917,2]
[332496341,1721274666231,-500.0,0.00021917,2]
[332496342,1721274666241,-500.0,0.00021917,2]
[332496343,1721274666251,-500.0,0.00021917,2]
[332496344,1721274666261,-500.0,0.00021917,2]
[332496345,1721274666270,-500.0,0.00021917,2]
[332496346,1721274666280,-500.0,0.00021917,2]
[332496347,1721274666289,-500.0,0.00021917,2]
[332496348,1721274666299,-500.0,0.00021917,2]
[332496349,1721274666308,-725.9,0.00021917,2]
[332496350,1721274666318,-500.0,0.00021917,2]
[332496351,1721274666327,-500.0,0.00021917,2]
[332496352,1721274666337,-500.0,0.00021917,2]
[332496353,1721274666346,-500.0,0.00021917,2]
[332496354,1721274666355,-500.0,0.00021917,2]
[332496355,1721274666365,-430.68799957,0.00021917,2]
[332496356,1721274666375,-500.0,0.00021917,2]
[332496357,1721274666385,-503.86082427,0.00021917,2]
[332496358,1721274666395,-500.0,0.00021917,2]
[332496359,1721274666404,-500.0,0.00021917,2]
[332496360,1721274666414,-225.82973853,0.00021917,2]
[332496361,1721274666423,-500.0,0.00021917,2]
[332496362,1721274666432,-505.50568434,0.00021917,2]
[332496363,1721274666442,-504.67458294,0.00021917,2]
[332496364,1721274666452,-504.37232173,0.00021917,2]
[332496365,1721274666462,-1205.78,0.00021917,2]
[332496366,1721274666471,-980.23,0.00021917,2]
[332496367,1721274666480,-502.85073886,0.00021917,2]
[332496368,1721274666489,-500.0,0.00021917,2]
[332496369,1721274666499,-500.0,0.00021917,2]
[332496370,1721274666509,-500.0,0.00021917,2]
[332496371,1721274666518,-503.46757658,0.00021917,2]
[332496372,1721274666528,-500.0,0.00021917,2]
[332496373,1721274666538,-507.37962738,0.00021917,2]
[332496374,1721274666549,-505.27066612,0.00021917,2]
[332496375,1721274666559,-504.58582416,0.00021917,2]
[332496376,1721274666569,-500.0,0.00021917,2]
[332496377,1721274666579,-500.0,0.00021917,2]
[332496378,1721274666589,-500.0,0.00021917,2]
[332496379,1721274666598,-500.0,0.00021917,2]
[332496380,1721274666607,-504.49407285,0.00021917,2]
[332496381,1721274666617,-1674.25,0.00021917,2]
[332496382,1721274666627,-500.0,0.00021917,2]
[332496383,1721274666638,-538.64,0.00021917,2]
[332496384,1721274666650,-500.0,0.00021917,2]
[332496385,1721274666660,-539.44,0.00021917,2]
[332496386,1721274666670,-406.01282955,0.00021917,2]
[332496387,1721274666680,-500.0,0.00021917,2]
[332496388,1721274666690,-508.35937399,0.00021917,2]
[332496389,1721274666700,-500.0,0.00021917,2]
[332496390,1721274666710,-500.0,0.00021917,2]
[332496391,1721274666722,-500.0,0.00021917,2]
[332496392,1721274666732,-500.0,0.00021917,2]
[332496393,1721274666742,-506.63914489,0.00021917,2]
[332496394,1721274666751,-500.0,0.00021917,2]
[332496395,1721274666761,-500.0,0.00021917,2]
[332496396,1721274666771,-500.0,0.00021917,2]
[332496397,1721274666781,-500.0,0.00021917,2]
[332496398,1721274666790,-500.0,0.00021917,2]
[332496399,1721274666800,-500.0,0.00021917,2]
[332496400,1721274666809,-500.0,0.00021917,2]
[332496401,1721274666819,-500.0,0.00021917,2]
[332496402,1721274666829,-1106.76,0.00021917,2]
[332496403,1721274666838,-622.02,0.00021917,2]
[332496404,1721274666848,-500.0,0.00021917,2]
[332496405,1721274666857,-433.45896345,0.00021917,2]
[332496406,1721274666867,-500.0,0.00021917,2]
[332496407,1721274666876,-500.0,0.00021917,2]
[332496408,1721274666887,-626.01,0.00021917,2]
[332496409,1721274666897,-500.0,0.00021917,2]
[332496410,1721274666907,-1258.29,0.00021917,2]
[332496411,1721274666920,-502.10643881,0.00021917,2]
[332496412,1721274666929,-500.0,0.00021917,2]
[332496413,1721274666939,-506.50699638,0.00021917,2]
[332496414,1721274666949,-504.13294612,0.00021917,2]
[332496415,1721274666961,-500.0,0.00021917,2]
[332496416,1721274666970,-541.75,0.00021917,2]
[332496417,1721274666979,-594.74,0.00021917,2]
[332496418,1721274666989,-1320.7,0.00021917,2]
[332496419,1721274666999,-500.0,0.00021917,2]
[332496420,1721274667008,-505.29778258,0.00021917,2]
[332496421,1721274667018,-500.0,0.00021917,2]
[332496422,1721274667027,-500.0,0.00021917,2]
[332496423,1721274667037,-500.0,0.00021917,2]
[332496424,1721274667046,-537.02,0.00021917,2]
[332496425,1721274667055,-503.07885019,0.00021917,2]
[332496426,1721274667065,-500.0,0.00021917,2]
[332496427,1721274667074,-500.0,0.00021917,2]
[332496428,1721274667083,-500.0,0.00021917,2]
[332496429,1721274667092,-500.0,0.00021917,2]
[332496430,1721274667102,-500.0,0.00021917,2]
[332496431,1721274667111,-500.0,0.00021917,2]
[332496432,1721274667121,-500.0,0.00021917,2]
[332496433,1721274667132,-500.0,0.00021917,2]
[332496434,1721274667141,-507.67113902,0.00021917,2]
[332496435,1721274667151,-500.0,0.00021917,2]
[332496436,1721274667160,-500.0,0.00021917,2]
[332496437,1721274667169,-305.0,0.00021917,2]
[332496438,1721274667179,-1011.04,0.00021917,2]
[332496439,1721274667188,-500.0,0.00021917,2]
[332496440,1721274667197,-511.4801789,0.00021917,2]
[332496441,1721274667206,-500.0,0.00021917,2]
[332496442,1721274667215,-500.0,0.00021917,2]
[332496443,1721274667224,-500.0,0.00021917,2]
[332496444,1721274667233,-500.0,0.00021917,2]
[332496445,1721274667242,-500.0,0.00021917,2]
[332496446,1721274667251,-500.0,0.00021917,2]
[332496447,1721274667260,-507.33585609,0.00021917,2]
[332496448,1721274667269,-500.0,0.00021917,2]
[332496449,1721274667278,-500.0,0.00021917,2]
[332496450,1721274667287,-500.0,0.00021917,2]
[332496451,1721274667297,-504.71809381,0.00021917,2]
[332496452,1721274667306,-510.30119282,0.00021917,2]
[332496453,1721274667315,-511.94258927,0.00021917,2]
[332496454,1721274667324,-500.0,0.00021917,2]
[332496455,1721274667333,-500.0,0.00021917,2]
[332496456,1721274667342,-512.07779003,0.00021917,2]
[332496457,1721274667351,-500.0,0.00021917,2]
[332496458,1721274667360,-503.07067562,0.00021917,2]
[332496459,1721274667369,-500.0,0.00021917,2]
[332496460,1721274667379,-500.94271555,0.00021917,2]
[332496461,1721274667394,-500.0,0.00021917,2]
[332496462,1721274667403,-500.0,0.00021917,2]
[332496463,1721274667412,-213.49133807,0.00021917,2]
[332496464,1721274667422,-500.0,0.00021917,2]
[332496465,1721274667431,-500.0,0.00021917,2]
[332496466,1721274667440,-500.0,0.00021917,2]
[332496467,1721274667449,-500.0,0.00021917,2]
[332496468,1721274667458,-500.0,0.00021917,2]
[332496469,1721274667467,-507.60265826,0.00021917,2]
[332496470,1721274667477,-207.51082773,0.00021917,2]
[332496471,1721274667487,-500.0,0.00021917,2]
[332496472,1721274667496,-500.0,0.00021917,2]
[332496473,1721274667505,-896.75,0.00021917,2]
[332496474,1721274667515,-500.0,0.00021917,2]
[332496475,1721274667524,-500.0,0.00021917,2]
[332496476,1721274667533,-504.49076925,0.00021917,2]
[332496477,1721274667542,-165.19992415,0.00021917,2]
[332496478,1721274667552,-501.54466043,0.00021917,2]
[332496479,1721274667562,-500.0,0.00021917,2]
[332496480,1721274667571,-500.0,0.00021917,2]
[332496481,1721274667581,-500.0,0.00021917,2]
[332496482,1721274667590,-1409.64,0.00021917,2]
[332496483,1721274667600,-500.0,0.00021917,2]
[332496484,1721274667609,-500.0,0.00021917,2]
[332496485,1721274667618,-500.0,0.00021917,2]
[332496486,1721274667627,-501.79126371,0.00021917,2]
[332496487,1721274667637,-506.479513,0.00021917,2]
[332496488,1721274667652,-500.0,0.00021917,2]
[332496489,1721274667661,-500.0,0.00021917,2]
[332496490,1721274667670,-508.71400986,0.00021917,2]
[332496491,1721274667679,-500.0,0.00021917,2]
[332496492,1721274667689,-506.7790556,0.00021917,2]
[332496493,1721274667699,-1095.09,0.00021917,2]
[332496494,1721274667709,-522.8555535,0.00021917,2]
[332496495,1721274667721,-871.45,0.00021917,2]
[332496496,1721274667731,-500.0,0.00021917,2]
[332496497,1721274667741,-500.69371592,0.00021917,2]
[332496498,1721274667750,-516.33390453,0.00021917,2]
[332496499,1721274667759,-507.8744606,0.00021917,2]
[332496500,1721274667769,-500.0,0.00021917,2]
[332496501,1721274667778,-500.0,0.00021917,2]
[332496502,1721274667787,-500.0,0.00021917,2]
[332496503,1721274667796,-500.0,0.00021917,2]
[332496504,1721274667806,-500.0,0.00021917,2]
[332496505,1721274667816,-1121.33,0.00021917,2]
[332496506,1721274667825,-507.30449036,0.00021917,2]
[332496507,1721274667835,-1311.63,0.00021917,2]
[332496508,1721274667844,-500.0,0.00021917,2]
[332496509,1721274667854,-500.0,0.00021917,2]
[332496510,1721274667863,-500.0,0.00021917,2]
[332496511,1721274667872,-500.0,0.00021917,2]
[332496512,1721274667882,-500.0,0.00021917,2]
[332496513,1721274668044,-500.0,0.00021917,2]
[332496514,1721274668053,-500.0,0.00021917,2]
[332496515,1721274668062,-516.23095923,0.00021917,2]
[332496516,1721274668071,-970.12,0.00021917,2]
[332496517,1721274668080,-500.0,0.00021917,2]
[332496518,1721274668089,-502.38882577,0.00021917,2]
[332496519,1721274668098,-500.0,0.00021917,2]
[332496520,1721274668106,-512.77121441,0.00021917,2]
[332496521,1721274668116,-504.05697586,0.00021917,2]
[332496522,1721274668125,-500.0,0.00021917,2]
[332496523,1721274668134,-500.0,0.00021917,2]
[332496524,1721274668143,-500.0,0.00021917,2]
[332496525,1721274668153,-518.89020638,0.00021917,2]
[332496526,1721274668162,-509.25540535,0.00021917,2]
[332496527,1721274668171,-844.33,0.00021917,2]
[332496528,1721274668181,-500.0,0.00021917,2]
[332496529,1721274668191,-587.86,0.00021917,2]
[332496530,1721274668200,-516.44051503,0.00021917,2]
[332496531,1721274668209,-500.0,0.00021917,2]
[332496532,1721274668218,-500.0,0.00021917,2]
[332496533,1721274668227,-520.32,0.00021917,2]
[332496534,1721274668235,-500.0,0.00021917,2]
[332496535,1721274668244,-500.0,0.00021917,2]
[332496536,1721274668253,-500.0,0.00021917,2]
[332496537,1721274668262,-500.0,0.00021917,2]
[332496538,1721274668271,-503.02450513,0.00021917,2]
[332496539,1721274668280,-500.0,0.00021917,2]
[332496540,1721274668289,-500.0,0.00021917,2]
[332496541,1721274668299,-500.0,0.00021917,2]
[332496542,1721274668308,-500.0,0.00021917,2]
[332496543,1721274668317,-500.0,0.00021917,2]
[332496544,1721274668326,-500.0,0.00021917,2]
[332496545,1721274668335,-500.0,0.00021917,2]
[332496546,1721274668344,-500.0,0.00021917,2]
[332496547,1721274668353,-500.0,0.00021917,2]
[332496548,1721274668362,-500.0,0.00021917,2]
[332496549,1721274668371,-500.0,0.00021917,2]
[332496550,1721274668381,-508.6044571,0.00021917,2]
[332496551,1721274668390,-500.0,0.00021917,2]
[332496552,1721274668399,-500.0,0.00021917,2]
[332496553,1721274668409,-500.0,0.00021917,2]
[332496554,1721274668418,-379.04398851,0.00021917,2]
[332496555,1721274668427,-2191.14,0.00021917,2]
[332496556,1721274668437,-524.03,0.00021917,2]
[332496557,1721274668446,-500.0,0.00021917,2]
[332496558,1721274668455,-509.0671005,0.00021917,2]
[332496559,1721274668464,-2500.0,0.00021917,3]
[332496560,1721274668473,-500.0,0.00021917,2]
[332496561,1721274668483,-500.0,0.00021917,2]
[332496562,1721274668491,-500.0,0.00021917,2]
[332496563,1721274668501,-500.0,0.00021917,2]
[332496564,1721274668510,-752.53,0.00021917,2]
[332496565,1721274668519,-500.0,0.00021917,2]
[332496566,1721274668529,-500.0,0.00021917,2]
[332496567,1721274668538,-500.0,0.00021917,2]
[332496568,1721274668548,-501.56625206,0.00021917,2]
[332496569,1721274668557,-500.0,0.00021917,2]
[332496570,1721274668566,-500.0,0.00021917,2]
[332496571,1721274668575,-500.0,0.00021917,2]
[332496572,1721274668584,-860.04,0.00021917,2]
[332496573,1721274668594,-500.0,0.00021917,2]
[332496574,1721274668603,-516.60708399,0.00021917,2]
[332496575,1721274668613,-564.17,0.00021917,2]
[332496576,1721274668622,-509.64017389,0.00021917,2]
[332496577,1721274668632,-500.0,0.00021917,2]
[332496578,1721274668641,-502.43920351,0.00021917,2]
[332496579,1721274668654,-500.0,0.00021917,2]
[332496580,1721274668663,-500.0,0.00021917,2]
[332496581,1721274668672,-1501.53,0.00021917,2]
[332496582,1721274668682,-511.86554345,0.00021917,2]
[332496583,1721274668691,-502.37722024,0.00021917,2]
[332496584,1721274668700,-500.0,0.00021917,2]
[332496585,1721274668709,-500.0,0.00021917,2]
[332496586,1721274668719,-500.0,0.00021917,2]
[332496587,1721274668730,-500.0,0.00021917,2]
[332496588,1721274668741,-500.0,0.00021917,2]
[332496589,1721274668751,-500.0,0.00021917,2]
[332496590,1721274668760,-500.0,0.00021917,2]
[332496591,1721274668769,-505.89398006,0.00021917,2]
[332496592,1721274668779,-502.10404773,0.00021917,2]
[332496593,1721274668788,-990.67,0.00021917,2]
[332496594,1721274668797,-501.90565838,0.00021917,2]
[332496595,1721274668806,-500.0,0.00021917,2]
[332496596,1721274668816,-500.0,0.00021917,2]
[332496597,1721274668825,-1782.3,0.00021917,2]